[Event "Titled Tuesday Blitz October 5 2021"]
[White "Navalgund, Niranjan"]
[Black "Shkapenko, Pavel"]
[WhiteFideId "5030854"]
[BlackFideId "4151933"]
[WhiteElo "2290"]
[BlackElo "2386"]
[Result "1/2-1/2"]
[Round "08"]
[TimeControl "180+1"]
[Date "2021.10.05"]
[WhiteClock "0:00:29"]
[BlackClock "0:00:03"]

1. b3 {[%clk 0:02:53]}  e5 {[%clk 0:02:57]} 2. Bb2 {[%clk 0:02:52]}  Nc6 {[%clk 0:02:57]} 3. e3 {[%clk 0:02:51]}  d6 {[%clk 0:02:58]} 4. Bb5 {[%clk 0:02:50]}  Bd7 {[%clk 0:02:58]} 5. Nf3 {[%clk 0:02:48]}  Nf6 {[%clk 0:02:55]} 6. O-O {[%clk 0:02:47]}  Be7 {[%clk 0:02:55]} 7. d4 {[%clk 0:02:47]}  exd4 {[%clk 0:02:55]} 8. Nxd4 {[%clk 0:02:47]}  Nxd4 {[%clk 0:02:55]} 9. Bxd7+ {[%clk 0:02:48]}  Qxd7 {[%clk 0:02:56]} 10. Qxd4 {[%clk 0:02:49]}  O-O {[%clk 0:02:56]} 11. c4 {[%clk 0:02:49]}  d5 {[%clk 0:02:44]} 12. cxd5 {[%clk 0:02:45]}  Qxd5 {[%clk 0:02:43]} 13. Rd1 {[%clk 0:02:37]}  Rad8 {[%clk 0:02:35]} 14. Qxd5 {[%clk 0:02:36]}  Nxd5 {[%clk 0:02:35]} 15. Nc3 {[%clk 0:02:35]}  Nxc3 {[%clk 0:02:25]} 16. Bxc3 {[%clk 0:02:34]}  f6 {[%clk 0:02:21]} 17. Kf1 {[%clk 0:02:33]}  Kf7 {[%clk 0:02:21]} 18. Ke2 {[%clk 0:02:33]}  Ke6 {[%clk 0:02:21]} 19. Rac1 {[%clk 0:02:28]}  Ba3 {[%clk 0:02:20]} 20. Rb1 {[%clk 0:02:24]}  Rxd1 {[%clk 0:02:09]} 21. Rxd1 {[%clk 0:02:24]}  Bd6 {[%clk 0:02:10]} 22. f4 {[%clk 0:02:21]}  g6 {[%clk 0:02:09]} 23. g4 {[%clk 0:02:21]}  f5 {[%clk 0:02:09]} 24. g5 {[%clk 0:02:21]}  a5 {[%clk 0:02:07]} 25. Kf3 {[%clk 0:02:17]}  Ra8 {[%clk 0:02:03]} 26. h4 {[%clk 0:02:17]}  a4 {[%clk 0:02:03]} 27. b4 {[%clk 0:02:16]}  Ra6 {[%clk 0:01:50]} 28. h5 {[%clk 0:02:01]}  Rc6 {[%clk 0:01:49]} 29. hxg6 {[%clk 0:01:56]}  hxg6 {[%clk 0:01:47]} 30. Rd3 {[%clk 0:01:50]}  Rc4 {[%clk 0:01:37]} 31. a3 {[%clk 0:01:48]}  b5 {[%clk 0:01:37]} 32. Ke2 {[%clk 0:01:41]}  c5 {[%clk 0:01:36]} 33. bxc5 {[%clk 0:01:41]}  Bxc5 {[%clk 0:01:36]} 34. Bd2 {[%clk 0:01:41]}  Rc2 {[%clk 0:01:32]} 35. Kd1 {[%clk 0:01:37]}  Ra2 {[%clk 0:01:32]} 36. Rc3 {[%clk 0:01:38]}  Kd5 {[%clk 0:01:15]} 37. Bc1 {[%clk 0:01:37]}  Kd6 {[%clk 0:00:58]} 38. Rd3+ {[%clk 0:01:34]}  Ke6 {[%clk 0:00:53]} 39. Rc3 {[%clk 0:01:32]}  Kd5 {[%clk 0:00:54]} 40. Rd3+ {[%clk 0:01:33]}  Kc4 {[%clk 0:00:46]} 41. Rd8 {[%clk 0:01:31]}  Bxa3 {[%clk 0:00:39]} 42. Bd2 {[%clk 0:01:29]}  b4 {[%clk 0:00:32]} 43. Rc8+ {[%clk 0:01:24]}  Kd3 {[%clk 0:00:26]} 44. Rd8+ {[%clk 0:01:24]}  Ke4 {[%clk 0:00:27]} 45. Ke2 {[%clk 0:01:22]}  Bb2 {[%clk 0:00:24]} 46. Re8+ {[%clk 0:01:12]}  Kd5 {[%clk 0:00:24]} 47. Kd3 {[%clk 0:01:13]}  b3 {[%clk 0:00:18]} 48. Rb8 {[%clk 0:01:08]}  Bg7 {[%clk 0:00:15]} 49. Rb7 {[%clk 0:01:08]}  Bf8 {[%clk 0:00:15]} 50. Bc3 {[%clk 0:01:08]}  Bd6 {[%clk 0:00:14]} 51. Rg7 {[%clk 0:01:03]}  b2 {[%clk 0:00:14]} 52. Kc2 {[%clk 0:01:03]}  a3 {[%clk 0:00:14]} 53. Rxg6 {[%clk 0:01:02]}  Ra1 {[%clk 0:00:14]} 54. Bxb2 {[%clk 0:01:02]}  Ra2 {[%clk 0:00:13]} 55. Rf6 {[%clk 0:00:59]}  Rxb2+ {[%clk 0:00:13]} 56. Kc1 {[%clk 0:01:00]}  Rb3 {[%clk 0:00:12]} 57. Rxf5+ {[%clk 0:00:59]}  Ke4 {[%clk 0:00:12]} 58. Ra5 {[%clk 0:00:59]}  Kxe3 {[%clk 0:00:12]} 59. f5 {[%clk 0:00:59]}  Bf4 {[%clk 0:00:12]} 60. Kc2 {[%clk 0:00:58]}  Rb2+ {[%clk 0:00:12]} 61. Kc3 {[%clk 0:00:59]}  Rb8 {[%clk 0:00:09]} 62. Rxa3 {[%clk 0:00:57]}  Bxg5 {[%clk 0:00:09]} 63. Ra6 {[%clk 0:00:54]}  Rf8 {[%clk 0:00:08]} 64. f6 {[%clk 0:00:53]}  Bxf6+ {[%clk 0:00:07]} 65. Kc4 {[%clk 0:00:53]}  Ke4 {[%clk 0:00:08]} 66. Re6+ {[%clk 0:00:52]}  Be5 {[%clk 0:00:08]} 67. Rc6 {[%clk 0:00:52]}  Rd8 {[%clk 0:00:08]} 68. Rh6 {[%clk 0:00:49]}  Rd1 {[%clk 0:00:07]} 69. Rh4+ {[%clk 0:00:48]}  Bf4 {[%clk 0:00:08]} 70. Kc5 {[%clk 0:00:44]}  Rd7 {[%clk 0:00:07]} 71. Kc6 {[%clk 0:00:41]}  Rc7+ {[%clk 0:00:07]} 72. Kb6 {[%clk 0:00:42]}  Rc4 {[%clk 0:00:07]} 73. Kb5 {[%clk 0:00:41]}  Rc2 {[%clk 0:00:07]} 74. Kb4 {[%clk 0:00:38]}  Ke5 {[%clk 0:00:07]} 75. Kb3 {[%clk 0:00:38]}  Rc6 {[%clk 0:00:07]} 76. Kb4 {[%clk 0:00:38]}  Bd2+ {[%clk 0:00:06]} 77. Kb3 {[%clk 0:00:38]}  Rc3+ {[%clk 0:00:06]} 78. Kb2 {[%clk 0:00:37]}  Rf3 {[%clk 0:00:06]} 79. Kc2 {[%clk 0:00:37]}  Bg5 {[%clk 0:00:06]} 80. Ra4 {[%clk 0:00:36]}  Bf6 {[%clk 0:00:05]} 81. Kd2 {[%clk 0:00:34]}  Kd5 {[%clk 0:00:05]} 82. Ke2 {[%clk 0:00:34]}  Rb3 {[%clk 0:00:04]} 83. Ra8 {[%clk 0:00:30]}  Ke4 {[%clk 0:00:03]} 84. Ra4+ {[%clk 0:00:30]}  Bd4 {[%clk 0:00:03]} 85. Ra2 {[%clk 0:00:28]}  Rh3 {[%clk 0:00:03]} 86. Rc2 {[%clk 0:00:28]}  Rh2+ {[%clk 0:00:03]} 87. Kd1 {[%clk 0:00:29]}  Bf2 {[%clk 0:00:02]} 88. Re2+ {[%clk 0:00:28]}  Kd3 {[%clk 0:00:02]} 89. Rd2+ {[%clk 0:00:28]}  Ke3 {[%clk 0:00:03]} 90. Re2+ {[%clk 0:00:29]}  Kf3 {[%clk 0:00:03]} 91. Rd2 {[%clk 0:00:28]}  Rh4 {[%clk 0:00:03]} 92. Kc2 {[%clk 0:00:28]}  Rb4 {[%clk 0:00:04]} 93. Rd3+ {[%clk 0:00:28]}  Ke2 {[%clk 0:00:03]} 94. Rb3 {[%clk 0:00:28]}  Rc4+ {[%clk 0:00:03]} 95. Rc3 {[%clk 0:00:29]}  Rxc3+ {[%clk 0:00:03]} 96. Kxc3 {[%clk 0:00:29]} 1/2-1/2


[Site "https://www.chess.com"]

[Event "Titled Tuesday Blitz October 5 2021"]
[White "Nguyen Hong Nhung"]
[Black "Liyanage, Ranindu Dilshan"]
[WhiteFideId "12412201"]
[BlackFideId "9915834"]
[WhiteElo "1661"]
[BlackElo "1839"]
[Result "0-1"]
[Round "08"]
[TimeControl "180+1"]
[Date "2021.10.05"]
[WhiteClock "0:00:07"]
[BlackClock "0:00:14"]

1. e4 {[%clk 0:03:00]}  c5 {[%clk 0:02:58]} 2. Nc3 {[%clk 0:03:01]}  a6 {[%clk 0:02:57]} 3. Nf3 {[%clk 0:03:00]}  d6 {[%clk 0:02:57]} 4. d4 {[%clk 0:03:00]}  cxd4 {[%clk 0:02:58]} 5. Nxd4 {[%clk 0:03:01]}  Nf6 {[%clk 0:02:58]} 6. Be3 {[%clk 0:03:01]}  e5 {[%clk 0:02:58]} 7. Nb3 {[%clk 0:03:01]}  Be7 {[%clk 0:02:58]} 8. Be2 {[%clk 0:02:56]}  Be6 {[%clk 0:02:56]} 9. O-O {[%clk 0:02:48]}  Nbd7 {[%clk 0:02:56]} 10. f3 {[%clk 0:02:47]}  Rc8 {[%clk 0:02:52]} 11. Qe1 {[%clk 0:02:42]}  O-O {[%clk 0:02:46]} 12. Rd1 {[%clk 0:02:39]}  Qc7 {[%clk 0:02:46]} 13. Qf2 {[%clk 0:02:27]}  b5 {[%clk 0:02:42]} 14. Rd2 {[%clk 0:02:26]}  b4 {[%clk 0:02:06]} 15. Nd5 {[%clk 0:02:20]}  Bxd5 {[%clk 0:02:06]} 16. exd5 {[%clk 0:02:21]}  a5 {[%clk 0:02:01]} 17. Bb5 {[%clk 0:02:13]}  Bd8 {[%clk 0:01:41]} 18. Rfd1 {[%clk 0:02:03]}  Qb8 {[%clk 0:01:36]} 19. Ba6 {[%clk 0:01:39]}  Rc7 {[%clk 0:01:22]} 20. Nxa5 {[%clk 0:01:32]}  Qa8 {[%clk 0:01:22]} 21. Qe2 {[%clk 0:01:29]}  Ra7 {[%clk 0:01:09]} 22. Bxa7 {[%clk 0:01:27]}  Qxa7+ {[%clk 0:01:10]} 23. Kh1 {[%clk 0:01:25]}  Bxa5 {[%clk 0:01:08]} 24. Bc4 {[%clk 0:01:15]}  Nc5 {[%clk 0:01:07]} 25. b3 {[%clk 0:01:08]}  Bb6 {[%clk 0:01:05]} 26. Qe1 {[%clk 0:00:55]}  e4 {[%clk 0:01:04]} 27. Re2 {[%clk 0:00:43]}  exf3 {[%clk 0:00:55]} 28. gxf3 {[%clk 0:00:44]}  Qb8 {[%clk 0:00:51]} 29. Qxb4 {[%clk 0:00:40]}  Qd8 {[%clk 0:00:46]} 30. a4 {[%clk 0:00:39]}  Ncd7 {[%clk 0:00:44]} 31. Qxd6 {[%clk 0:00:34]}  Bc5 {[%clk 0:00:44]} 32. Qg3 {[%clk 0:00:33]}  Nh5 {[%clk 0:00:42]} 33. Qg4 {[%clk 0:00:24]}  Ndf6 {[%clk 0:00:42]} 34. Qg5 {[%clk 0:00:23]}  h6 {[%clk 0:00:41]} 35. Qf5 {[%clk 0:00:22]}  g6 {[%clk 0:00:42]} 36. Qe5 {[%clk 0:00:17]}  Re8 {[%clk 0:00:32]} 37. Qc3 {[%clk 0:00:13]}  Bd6 {[%clk 0:00:19]} 38. Rg2 {[%clk 0:00:12]}  Nf4 {[%clk 0:00:19]} 39. Rf2 {[%clk 0:00:09]}  Qb6 {[%clk 0:00:18]} 40. Rdf1 {[%clk 0:00:07]}  N6xd5 {[%clk 0:00:16]} 41. Bxd5 {[%clk 0:00:07]}  Nxd5 {[%clk 0:00:17]} 42. Qd2 {[%clk 0:00:07]}  Bf4 {[%clk 0:00:17]} 43. Qxd5 {[%clk 0:00:06]}  Re5 {[%clk 0:00:17]} 44. Qd7 {[%clk 0:00:06]}  Rh5 {[%clk 0:00:15]} 45. Qc8+ {[%clk 0:00:06]}  Kg7 {[%clk 0:00:15]} 46. Qg4 {[%clk 0:00:07]}  Qd6 {[%clk 0:00:14]} 0-1


[Site "https://www.chess.com"]

[Event "Titled Tuesday Blitz October 5 2021"]
[White "Onyshchuk, Volodymyr"]
[Black "Andreikin, Dmitry"]
[WhiteFideId "14114038"]
[BlackFideId "4158814"]
[WhiteElo "2603"]
[BlackElo "2736"]
[Result "1/2-1/2"]
[Round "08"]
[TimeControl "180+1"]
[Date "2021.10.05"]
[WhiteClock "0:00:13"]
[BlackClock "0:00:35"]

1. e4 {[%clk 0:03:00]}  e5 {[%clk 0:02:59]} 2. Nf3 {[%clk 0:03:00]}  Nc6 {[%clk 0:03:00]} 3. Bc4 {[%clk 0:03:01]}  Bc5 {[%clk 0:02:59]} 4. d3 {[%clk 0:03:01]}  Nf6 {[%clk 0:02:59]} 5. c3 {[%clk 0:03:01]}  O-O {[%clk 0:02:59]} 6. Nbd2 {[%clk 0:03:01]}  a6 {[%clk 0:02:51]} 7. O-O {[%clk 0:02:56]}  Ba7 {[%clk 0:02:51]} 8. Bb3 {[%clk 0:02:54]}  h6 {[%clk 0:02:45]} 9. Re1 {[%clk 0:02:49]}  Re8 {[%clk 0:02:44]} 10. h3 {[%clk 0:02:41]}  d6 {[%clk 0:02:44]} 11. Nf1 {[%clk 0:02:40]}  Be6 {[%clk 0:02:45]} 12. Bc2 {[%clk 0:02:39]}  d5 {[%clk 0:02:43]} 13. exd5 {[%clk 0:02:38]}  Bxd5 {[%clk 0:02:42]} 14. Ng3 {[%clk 0:02:38]}  Qd7 {[%clk 0:02:41]} 15. b4 {[%clk 0:02:35]}  Rad8 {[%clk 0:02:40]} 16. a4 {[%clk 0:02:32]}  Bxf3 {[%clk 0:02:17]} 17. Qxf3 {[%clk 0:02:31]}  e4 {[%clk 0:02:18]} 18. Nxe4 {[%clk 0:02:22]}  Nxe4 {[%clk 0:02:15]} 19. Rxe4 {[%clk 0:02:06]}  Rxe4 {[%clk 0:01:59]} 20. dxe4 {[%clk 0:02:06]}  Qd6 {[%clk 0:01:34]} 21. Bf4 {[%clk 0:02:03]}  Qf6 {[%clk 0:01:33]} 22. Rd1 {[%clk 0:01:46]}  Rxd1+ {[%clk 0:01:26]} 23. Bxd1 {[%clk 0:01:45]}  Ne5 {[%clk 0:01:26]} 24. Bxe5 {[%clk 0:01:38]}  Qxe5 {[%clk 0:01:25]} 25. Bb3 {[%clk 0:01:37]}  Qf6 {[%clk 0:01:21]} 26. Qg3 {[%clk 0:01:33]}  g5 {[%clk 0:01:07]} 27. e5 {[%clk 0:01:28]}  Qf5 {[%clk 0:01:02]} 28. Bc4 {[%clk 0:00:50]}  c6 {[%clk 0:00:58]} 29. e6 {[%clk 0:00:46]}  fxe6 {[%clk 0:00:54]} 30. a5 {[%clk 0:00:43]}  Kg7 {[%clk 0:00:45]} 31. h4 {[%clk 0:00:39]}  Kf6 {[%clk 0:00:38]} 32. hxg5+ {[%clk 0:00:34]}  hxg5 {[%clk 0:00:39]} 33. Bd3 {[%clk 0:00:29]}  Qe5 {[%clk 0:00:24]} 34. Qf3+ {[%clk 0:00:26]}  Ke7 {[%clk 0:00:21]} 35. Bf1 {[%clk 0:00:23]}  Qf4 {[%clk 0:00:12]} 36. Qxf4 {[%clk 0:00:11]}  gxf4 {[%clk 0:00:13]} 37. Bd3 {[%clk 0:00:11]}  Bb8 {[%clk 0:00:11]} 38. c4 {[%clk 0:00:09]}  Bd6 {[%clk 0:00:08]} 39. b5 {[%clk 0:00:08]}  Bc5 {[%clk 0:00:07]} 40. Kf1 {[%clk 0:00:07]}  Kd6 {[%clk 0:00:07]} 41. Ke2 {[%clk 0:00:07]}  Bb4 {[%clk 0:00:06]} 42. bxa6 {[%clk 0:00:07]}  bxa6 {[%clk 0:00:06]} 43. c5+ {[%clk 0:00:07]}  Kxc5 {[%clk 0:00:07]} 44. Bxa6 {[%clk 0:00:07]}  Bxa5 {[%clk 0:00:07]} 45. f3 {[%clk 0:00:07]}  Kd4 {[%clk 0:00:07]} 46. Bd3 {[%clk 0:00:06]}  c5 {[%clk 0:00:07]} 47. Be4 {[%clk 0:00:05]}  c4 {[%clk 0:00:07]} 48. Kd1 {[%clk 0:00:05]}  Ke3 {[%clk 0:00:05]} 49. Kc2 {[%clk 0:00:05]}  Kf2 {[%clk 0:00:05]} 50. Bc6 {[%clk 0:00:05]}  Kxg2 {[%clk 0:00:05]} 51. Be4 {[%clk 0:00:05]}  Kf2 {[%clk 0:00:05]} 52. Bc6 {[%clk 0:00:06]}  Ke3 {[%clk 0:00:06]} 53. Be4 {[%clk 0:00:07]}  e5 {[%clk 0:00:07]} 54. Bc6 {[%clk 0:00:07]}  Kd4 {[%clk 0:00:07]} 55. Be4 {[%clk 0:00:07]}  Bb6 {[%clk 0:00:08]} 56. Bc6 {[%clk 0:00:07]}  Bc5 {[%clk 0:00:09]} 57. Be4 {[%clk 0:00:07]}  Bd6 {[%clk 0:00:10]} 58. Bb7 {[%clk 0:00:07]}  Bc5 {[%clk 0:00:11]} 59. Be4 {[%clk 0:00:08]}  Be7 {[%clk 0:00:12]} 60. Bb7 {[%clk 0:00:08]}  Bh4 {[%clk 0:00:13]} 61. Be4 {[%clk 0:00:08]}  Bf2 {[%clk 0:00:13]} 62. Bc6 {[%clk 0:00:08]}  Be1 {[%clk 0:00:14]} 63. Be4 {[%clk 0:00:08]}  Bb4 {[%clk 0:00:15]} 64. Bc6 {[%clk 0:00:09]}  Ba5 {[%clk 0:00:16]} 65. Be4 {[%clk 0:00:09]}  c3 {[%clk 0:00:16]} 66. Bb7 {[%clk 0:00:09]}  Ke3 {[%clk 0:00:17]} 67. Be4 {[%clk 0:00:10]}  Kd4 {[%clk 0:00:18]} 68. Bb7 {[%clk 0:00:10]}  Bb4 {[%clk 0:00:18]} 69. Be4 {[%clk 0:00:10]}  Kc4 {[%clk 0:00:18]} 70. Bb7 {[%clk 0:00:10]}  Bc5 {[%clk 0:00:19]} 71. Be4 {[%clk 0:00:11]}  Bd4 {[%clk 0:00:20]} 72. Bb7 {[%clk 0:00:11]}  Be3 {[%clk 0:00:21]} 73. Be4 {[%clk 0:00:10]}  Bd2 {[%clk 0:00:21]} 74. Bf5 {[%clk 0:00:10]}  Kd4 {[%clk 0:00:22]} 75. Be4 {[%clk 0:00:11]}  Ke3 {[%clk 0:00:23]} 76. Bc6 {[%clk 0:00:11]}  Ke2 {[%clk 0:00:24]} 77. Be4 {[%clk 0:00:11]}  Ke1 {[%clk 0:00:25]} 78. Bc6 {[%clk 0:00:12]}  Kf2 {[%clk 0:00:26]} 79. Be4 {[%clk 0:00:12]}  Kf1 {[%clk 0:00:26]} 80. Bc6 {[%clk 0:00:12]}  Kg2 {[%clk 0:00:27]} 81. Bd5 {[%clk 0:00:12]}  Kg1 {[%clk 0:00:28]} 82. Be4 {[%clk 0:00:12]}  Kh2 {[%clk 0:00:29]} 83. Bd5 {[%clk 0:00:12]}  Kg3 {[%clk 0:00:30]} 84. Be4 {[%clk 0:00:12]}  Kf2 {[%clk 0:00:31]} 85. Bd5 {[%clk 0:00:12]}  Ke3 {[%clk 0:00:32]} 86. Be4 {[%clk 0:00:13]}  Kd4 {[%clk 0:00:33]} 87. Bc6 {[%clk 0:00:13]}  Ke3 {[%clk 0:00:34]} 88. Be4 {[%clk 0:00:13]}  Kd4 {[%clk 0:00:35]} 89. Bc6 {[%clk 0:00:13]}  Ke3 {[%clk 0:00:35]} 90. Be4 {[%clk 0:00:13]} 1/2-1/2


[Site "https://www.chess.com"]

[Event "Titled Tuesday Blitz October 5 2021"]
[White "Rodchenkov, Vitaly"]
[Black "Piesik, Piotr"]
[WhiteFideId "4152964"]
[BlackFideId "1136194"]
[WhiteElo "2337"]
[BlackElo "2336"]
[Result "0-1"]
[Round "08"]
[TimeControl "180+1"]
[Date "2021.10.05"]
[WhiteClock "0:01:32"]
[BlackClock "0:02:05"]

1. Nf3 {[%clk 0:03:00]}  g6 {[%clk 0:03:00]} 2. c4 {[%clk 0:03:00]}  Bg7 {[%clk 0:03:00]} 3. Nc3 {[%clk 0:03:00]}  d6 {[%clk 0:03:00]} 4. d4 {[%clk 0:03:00]}  Nd7 {[%clk 0:03:00]} 5. g3 {[%clk 0:02:58]}  e5 {[%clk 0:03:00]} 6. Bg2 {[%clk 0:02:58]}  Ngf6 {[%clk 0:03:00]} 7. O-O {[%clk 0:02:55]}  O-O {[%clk 0:03:00]} 8. b3 {[%clk 0:02:42]}  c6 {[%clk 0:02:58]} 9. Ba3 {[%clk 0:02:39]}  exd4 {[%clk 0:02:56]} 10. Nxd4 {[%clk 0:02:38]}  Nc5 {[%clk 0:02:54]} 11. e3 {[%clk 0:02:34]}  Re8 {[%clk 0:02:52]} 12. Qc2 {[%clk 0:02:33]}  Ne6 {[%clk 0:02:46]} 13. Rad1 {[%clk 0:02:30]}  Qc7 {[%clk 0:02:45]} 14. Rfe1 {[%clk 0:02:28]}  Nxd4 {[%clk 0:02:41]} 15. exd4 {[%clk 0:02:28]}  Bf5 {[%clk 0:02:40]} 16. Qc1 {[%clk 0:02:24]}  Qd7 {[%clk 0:02:34]} 17. d5 {[%clk 0:02:04]}  c5 {[%clk 0:02:32]} 18. Bb2 {[%clk 0:02:04]}  a6 {[%clk 0:02:28]} 19. a4 {[%clk 0:02:03]}  Rxe1+ {[%clk 0:02:20]} 20. Rxe1 {[%clk 0:02:02]}  Re8 {[%clk 0:02:21]} 21. h4 {[%clk 0:01:58]}  h5 {[%clk 0:02:20]} 22. Bf3 {[%clk 0:01:52]}  Re7 {[%clk 0:02:14]} 23. Rxe7 {[%clk 0:01:46]}  Qxe7 {[%clk 0:02:15]} 24. Qd2 {[%clk 0:01:46]}  Nd7 {[%clk 0:02:14]} 25. Qe2 {[%clk 0:01:31]}  Qxe2 {[%clk 0:02:09]} 26. Bxe2 {[%clk 0:01:32]}  Bc2 {[%clk 0:02:06]} 27. Bd1 {[%clk 0:01:32]}  Bxc3 {[%clk 0:02:05]} 0-1


[Site "https://www.chess.com"]

[Event "Titled Tuesday Blitz October 5 2021"]
[White "Sadykov, Ramil"]
[Black "Seo, Jung Min"]
[WhiteFideId "24113590"]
[BlackFideId "1734687"]
[WhiteElo "2300"]
[BlackElo "2486"]
[Result "0-1"]
[Round "08"]
[TimeControl "180+1"]
[Date "2021.10.05"]
[WhiteClock "0:00:01"]
[BlackClock "0:00:51"]

1. d4 {[%clk 0:02:59]}  Nf6 {[%clk 0:02:59]} 2. Nc3 {[%clk 0:02:58]}  d5 {[%clk 0:02:59]} 3. Bf4 {[%clk 0:02:59]}  c6 {[%clk 0:02:58]} 4. e3 {[%clk 0:02:59]}  Bf5 {[%clk 0:02:57]} 5. Nf3 {[%clk 0:02:58]}  Nbd7 {[%clk 0:02:57]} 6. Ne5 {[%clk 0:02:56]}  Nxe5 {[%clk 0:02:55]} 7. Bxe5 {[%clk 0:02:55]}  e6 {[%clk 0:02:55]} 8. Bd3 {[%clk 0:02:51]}  Bxd3 {[%clk 0:02:54]} 9. cxd3 {[%clk 0:02:49]}  Be7 {[%clk 0:02:52]} 10. O-O {[%clk 0:02:47]}  O-O {[%clk 0:02:52]} 11. Rc1 {[%clk 0:02:46]}  Nd7 {[%clk 0:02:51]} 12. Bg3 {[%clk 0:02:45]}  Rc8 {[%clk 0:02:51]} 13. Na4 {[%clk 0:02:41]}  Qa5 {[%clk 0:02:47]} 14. Qb3 {[%clk 0:02:32]}  b6 {[%clk 0:02:45]} 15. Rc2 {[%clk 0:02:22]}  c5 {[%clk 0:02:43]} 16. Rfc1 {[%clk 0:02:12]}  Rc6 {[%clk 0:02:42]} 17. a3 {[%clk 0:01:52]}  Rfc8 {[%clk 0:02:40]} 18. dxc5 {[%clk 0:01:46]}  Nxc5 {[%clk 0:02:35]} 19. Nxc5 {[%clk 0:01:45]}  Rxc5 {[%clk 0:02:33]} 20. Kf1 {[%clk 0:01:39]}  h6 {[%clk 0:02:26]} 21. Be5 {[%clk 0:01:29]}  f6 {[%clk 0:02:15]} 22. Bd4 {[%clk 0:01:27]}  Rxc2 {[%clk 0:02:14]} 23. Rxc2 {[%clk 0:01:28]}  Rxc2 {[%clk 0:02:14]} 24. Qxc2 {[%clk 0:01:27]}  e5 {[%clk 0:02:14]} 25. Qc8+ {[%clk 0:01:21]}  Kf7 {[%clk 0:02:08]} 26. Bc3 {[%clk 0:01:11]}  Qb5 {[%clk 0:02:08]} 27. Qf5 {[%clk 0:00:57]}  e4 {[%clk 0:02:02]} 28. Qh5+ {[%clk 0:00:47]}  Kf8 {[%clk 0:02:02]} 29. Ke1 {[%clk 0:00:39]}  Qxd3 {[%clk 0:01:59]} 30. h4 {[%clk 0:00:34]}  Bxa3 {[%clk 0:01:51]} 31. Qf5 {[%clk 0:00:27]}  Be7 {[%clk 0:01:46]} 32. h5 {[%clk 0:00:24]}  Qc4 {[%clk 0:01:42]} 33. g4 {[%clk 0:00:21]}  Qc6 {[%clk 0:01:36]} 34. g5 {[%clk 0:00:07]}  hxg5 {[%clk 0:01:36]} 35. Qh7 {[%clk 0:00:05]}  Qe6 {[%clk 0:01:32]} 36. h6 {[%clk 0:00:05]}  gxh6 {[%clk 0:01:31]} 37. Qh8+ {[%clk 0:00:04]}  Kf7 {[%clk 0:01:31]} 38. Qxh6 {[%clk 0:00:02]}  Qf5 {[%clk 0:01:21]} 39. Qh5+ {[%clk 0:00:02]}  Qg6 {[%clk 0:01:21]} 40. Qh8 {[%clk 0:00:02]}  g4 {[%clk 0:01:18]} 41. Qa8 {[%clk 0:00:03]}  Qf5 {[%clk 0:01:12]} 42. Qxa7 {[%clk 0:00:03]}  Qe6 {[%clk 0:01:11]} 43. Bb4 {[%clk 0:00:02]}  b5 {[%clk 0:01:10]} 44. Bc5 {[%clk 0:00:01]}  f5 {[%clk 0:01:03]} 45. b4 {[%clk 0:00:01]}  Kf6 {[%clk 0:01:01]} 46. Bd4+ {[%clk 0:00:01]}  Kg6 {[%clk 0:01:01]} 47. Bc5 {[%clk 0:00:01]}  Bf6 {[%clk 0:00:59]} 48. Qb7 {[%clk 0:00:01]}  d4 {[%clk 0:00:51]} 0-1


[Site "https://www.chess.com"]

[Event "Titled Tuesday Blitz October 5 2021"]
[White "Seul, Georg"]
[Black "Sinitsina, Anastassia"]
[WhiteFideId "4601653"]
[BlackFideId "4504640"]
[WhiteElo "2332"]
[BlackElo "2161"]
[Result "1-0"]
[Round "08"]
[TimeControl "180+1"]
[Date "2021.10.05"]
[WhiteClock "0:00:04"]
[BlackClock "0:00:07"]

1. e4 {[%clk 0:03:00]}  e5 {[%clk 0:02:58]} 2. Nc3 {[%clk 0:03:00]}  Nf6 {[%clk 0:02:57]} 3. f4 {[%clk 0:03:00]}  d5 {[%clk 0:02:57]} 4. fxe5 {[%clk 0:03:01]}  Nxe4 {[%clk 0:02:58]} 5. Qf3 {[%clk 0:03:02]}  Nxc3 {[%clk 0:02:55]} 6. bxc3 {[%clk 0:03:02]}  c6 {[%clk 0:02:54]} 7. d4 {[%clk 0:03:01]}  Be7 {[%clk 0:02:53]} 8. Bd3 {[%clk 0:03:01]}  Nd7 {[%clk 0:02:49]} 9. Ne2 {[%clk 0:03:00]}  O-O {[%clk 0:02:43]} 10. O-O {[%clk 0:02:59]}  Nb6 {[%clk 0:02:40]} 11. Qh5 {[%clk 0:02:55]}  g6 {[%clk 0:02:39]} 12. Qh6 {[%clk 0:02:55]}  Re8 {[%clk 0:02:34]} 13. h4 {[%clk 0:01:17]}  Bf8 {[%clk 0:02:30]} 14. Qf4 {[%clk 0:01:17]}  Be6 {[%clk 0:02:25]} 15. h5 {[%clk 0:01:17]}  Nd7 {[%clk 0:02:20]} 16. hxg6 {[%clk 0:01:14]}  hxg6 {[%clk 0:02:17]} 17. Qg3 {[%clk 0:01:13]}  Bg7 {[%clk 0:02:15]} 18. Bg5 {[%clk 0:01:11]}  Qb6 {[%clk 0:02:08]} 19. Rab1 {[%clk 0:01:04]}  Qc7 {[%clk 0:02:07]} 20. Nf4 {[%clk 0:01:03]}  c5 {[%clk 0:02:06]} 21. Nxg6 {[%clk 0:00:51]}  fxg6 {[%clk 0:02:00]} 22. Bxg6 {[%clk 0:00:51]}  Rf8 {[%clk 0:02:00]} 23. Qh4 {[%clk 0:00:50]}  Rxf1+ {[%clk 0:02:00]} 24. Rxf1 {[%clk 0:00:50]}  Nf8 {[%clk 0:01:59]} 25. Bh5 {[%clk 0:00:30]}  cxd4 {[%clk 0:01:50]} 26. cxd4 {[%clk 0:00:29]}  Qxc2 {[%clk 0:01:50]} 27. Bf6 {[%clk 0:00:25]}  Qh7 {[%clk 0:01:23]} 28. Rf3 {[%clk 0:00:23]}  Rc8 {[%clk 0:01:12]} 29. Rg3 {[%clk 0:00:23]}  Rc1+ {[%clk 0:01:05]} 30. Kh2 {[%clk 0:00:23]}  Rc7 {[%clk 0:01:05]} 31. Kg1 {[%clk 0:00:18]}  Kh8 {[%clk 0:01:02]} 32. Qg5 {[%clk 0:00:17]}  Bf5 {[%clk 0:00:32]} 33. Bxg7+ {[%clk 0:00:12]}  Rxg7 {[%clk 0:00:32]} 34. Qf6 {[%clk 0:00:12]}  Ne6 {[%clk 0:00:28]} 35. Rxg7 {[%clk 0:00:08]}  Nxg7 {[%clk 0:00:25]} 36. Bf7 {[%clk 0:00:05]}  Be4 {[%clk 0:00:08]} 37. Qd8+ {[%clk 0:00:04]}  Ne8 {[%clk 0:00:09]} 38. Qxe8+ {[%clk 0:00:04]}  Kg7 {[%clk 0:00:09]} 39. Qe7 {[%clk 0:00:05]}  Kh6 {[%clk 0:00:07]} 40. Qf6+ {[%clk 0:00:04]} 1-0


[Site "https://www.chess.com"]